Cogmind - Beta 13 @@@ ROGUE MODE // 2024.03.31 @ 19:16:14 Player: Auguststar101 Result: Destroyed by as-91402 with Assembled Rifle Performance ------------- Evolutions (0) 0 Regions Visited (2) 400 Robots Destroyed (6) 30 Value Destroyed (199) 199 Prototype IDs (2) 40 Alien Tech Used (0) 0 Bonus (35) 35 TOTAL SCORE: 704 Bonus ------- Follower Combat Kills 35 Cogmind --------- Core Integrity 0/250 Matter 400/400 Energy 100/100 System Corruption 1% Temperature Cool (0) Movement Core (50) Location -10/Mines Parts ------- > --- POWER (1) -------- (None) > --- PROPULSION (2) --- (None) > --- UTILITY (2) ------ Medium Matter Pod Propulsion Shielding > --- WEAPON (2) ------- (None) > --- INVENTORY (5) ---- Ion Engine Light Nuclear Core Small Storage Unit Light Armor Plating Peak State ------------ > --- POWER ------------ Light Angular Momentum Engine > --- PROPULSION ------- Light Treads Light Treads > --- UTILITY ---------- Improved Heat Sink Medium Matter Pod > --- WEAPON ----------- Beamcaster Light Assault Rifle > --- INVENTORY -------- Ion Engine Light Nuclear Core Small Storage Unit Propulsion Shielding Light Armor Plating [Rating: 17] Favorites ----------- Power Ion Engine Engine Ion Engine Power Core Light Nuclear Core Propulsion Light Treads Treads Light Treads Utility Small Storage Unit Device Heat Sink Storage Small Storage Unit Protection Light Armor Plating Weapon Light Assault Rifle Energy Gun Backup Laser I Ballistic Gun Light Assault Rifle Build | -11 -10 -10 ------- Run | Yrd Mat Min Slots Evolved . | . . . Power . | . . . Propulsion . | . . . Utility . | . . . Weapon . | . . . Parts Attached 14 | 5 4 5 Power 4 | 1 1 2 Engine 3 | 1 1 1 Core 1 | . . 1 Reactor . | . . . Propulsion 2 | 2 . . Treads 2 | 2 . . Leg . | . . . Wheel . | . . . Hover . | . . . Flight . | . . . Utility 6 | 1 3 2 Device 2 | . 1 1 Storage 2 | 1 1 . Processor . | . . . Hackware . | . . . Protection 2 | . 1 1 Artifact . | . . . Weapon 2 | 1 . 1 Energy Gun 1 | . . 1 Energy Cannon . | . . . Ballistic Gun 1 | 1 . . Ballistic Cannon . | . . . Launcher . | . . . Special Weapon . | . . . Impact Weapon . | . . . Slashing Weapon . | . . . Piercing Weapon . | . . . Special Melee Weapon . | . . . Unidentified Prototypes . | . . . Parts Lost 7 | . 1 6 Power 1 | . . 1 Propulsion 2 | . . 2 Utility 2 | . 1 1 Weapon 2 | . . 2 Highest Loss Streak 6 | . 1 6 To Critical Strikes . | . . . Average Slot Usage (%) 89 | . 83 97 Engine 13 | . 14 12 Treads 27 | . 28 27 Device 6 | . 1 13 Storage 14 | . 14 14 Protection 3 | . 4 . Energy Gun 8 | . 5 13 Ballistic Gun 14 | . 14 14 Naked Turns . | . . . Heaviest Build 18 | 11 15 18 Greatest Support 40 | 40 40 40 Greatest Overweight (x) . | . . . Average Overweight (x) . | . . . Largest Inventory Capacity 8 | 8 8 5 Average Capacity 6 | 7 7 5 Most Carried 7 | 5 7 5 Average Carried 3 | 1 3 4 Final Capacity 8 | 8 5 5 Final Carried 5 | 2 5 4 Class Distribution -------------------- 100% | Mutant Dominant Class ---------------- Mutant | -10/Materials Mutant | -10/Mines Resources | -11 -10 -10 ----------- Run | Yrd Mat Min Matter Collected 484 | 254 164 66 Remotely . | . . . Salvage Created 344 | 71 164 109 Parts 16 | 1 11 4 Haulers Intercepted . | . . . Recyclers Shooed . | . . . Parts Field Recycled . | . . . Retrieved Matter . | . . . Parts Self-Destructed . | . . . Prevented . | . . . Kills | -11 -10 -10 ------- Run | Yrd Mat Min Combat Hostiles Destroyed 11 | . 4 7 Guns 7 | . 4 3 AOE 4 | . . 4 Classes Destroyed 3 | 1 1 1 Recycler 1 | 1 . . Grunt 5 | . 4 1 Assembled 6 | . . 6 Best Kill Streak 6 | 1 4 6 Combat Bots Only 6 | . 4 6 Max Kills in Single Turn 4 | 1 1 4 Gunslinging . | . . . Exploded 4 | . . 4 Melee . | . . . Uniques/NPCs Destroyed . | . . . Combat | -11 -10 -10 -------- Run | Yrd Mat Min Hostile Shots Fired 100 | . 56 44 Missed 29 | . 17 12 Damage Taken 1005 | . 448 557 Core 259 | . 88 171 Absorbed by Shields . | . . . Core Remaining (%) 100 | 100 . . Volleys Fired 53 | 4 29 20 Largest 2 | 1 2 2 Hottest 95 | 20 50 95 Shots Fired 84 | 4 50 30 Gun 84 | 4 50 30 Cannon . | . . . Launcher . | . . . Special . | . . . Kinetic 53 | 4 29 20 Thermal 31 | . 21 10 Explosive . | . . . Electromagnetic . | . . . Robot Hit Streak 10 | 3 7 10 Robot Miss Streak 4 | 1 4 2 Penetration Max . | . . . Secondary Targets 3 | . 2 1 Max Gunslinging Chain 1 | . 1 1 Shots Hit Robots 49 | 3 30 16 Core Hits 23 | 2 11 10 Critical Kills . | . . . Critical Parts Destroyed . | . . . Critical Strikes . | . . . Melee Attacks . | . . . Impact . | . . . Slashing . | . . . Piercing . | . . . Sneak Attacks . | . . . Combat Hostiles . | . . . Follow-up Attacks . | . . . Damage Inflicted 689 | 23 247 419 Guns 451 | 23 247 181 Cannons . | . . . Explosions 238 | . . 238 Melee . | . . . Ramming . | . . . Kinetic 263 | 23 147 93 Thermal 426 | . 100 326 Explosive . | . . . Electromagnetic . | . . . Impact . | . . . Slashing . | . . . Piercing . | . . . Highest Corruption 1 | . . 1 Average Corruption 1 | . . 1 Corruption Purged . | . . . Corruption Blocked . | . . . Overload Shots . | . . . Overflow Damage 9 | . . 9 Projectiles . | . . . Explosions 9 | . . 9 Melee . | . . . Knockbacks . | . . . Impact . | . . . Kinetic . | . . . Secondary . | . . . Self-Inflicted Damage 57 | . . 57 Shots 1 | . . 1 Rammed . | . . . Targets Rammed . | . . . Kicked . | . . . Crushed . | . . . Highest Temperature 227 | . 227 80 Average Temperature 106 | . 125 35 Received Heat Transfer 408 | . 246 162 Effects 2 | . 2 . Energy Bleed 2 | . 2 . Siege Activations . | . . . Robots Corrupted . | . . . Combat Hostiles . | . . . Parts Fried . | . . . Impact Corruptions . | . . . Robots Melted . | . . . Combat Hostiles . | . . . Parts Melted . | . . . Heat Transferred 879 | . 407 472 Parts Sabotaged . | . . . Parts Stolen . | . . . Parts Stripped . | . . . Power Chain Reactions . | . . . Alert | -11 -10 -10 ------- Run | Yrd Mat Min Peak Influence 90 | 5 90 79 Initial 34 | . 3 34 Average 30 | 2 30 41 Maximum Alert Level . | . . . Low Security (%) 100 | 100 100 100 Level 1 . | . . . Level 2 . | . . . Level 3 . | . . . Level 4 . | . . . Level 5 . | . . . High Security . | . . . Max Security . | . . . Squads Dispatched 1 | . 1 . Investigation 1 | . 1 . Extermination . | . . . Reinforcement . | . . . Assault . | . . . Garrison . | . . . Intercept . | . . . Searches Triggered . | . . . Construction Impeded . | . . . Haulers Reinforced . | . . . Active Scanning Responses . | . . . Cargo Convoy Interrupts . | . . . Stealth | -11 -10 -10 --------- Run | Yrd Mat Min Distress Signals . | . . . Communications Jammed . | . . . Distress Signals . | . . . Times Spotted 24 | . 8 16 Peak Tracking Total 10 | . 5 10 Tactical Retreats 2 | . 1 1 Traps | -11 -10 -10 ------- Run | Yrd Mat Min Traps Triggered 1 | . 1 . Indirectly . | . . . Trap Hack Attempts . | . . . Triggered . | . . . Disarmed . | . . . Reprogrammed . | . . . Reused . | . . . Traps Extracted . | . . . Installed . | . . . Triggered . | . . . Machines | -11 -10 -10 ---------- Run | Yrd Mat Min Machines Disabled 1 | . . 1 Max in Single Turn 1 | . . 1 Machines Repaired . | . . . Machines Dismantled . | . . . Machines Sabotaged . | . . . Overloaded Fab Kills . | . . . Hacking | -11 -10 -10 --------- Run | Yrd Mat Min Machines Accessed 2 | . 2 . Terminals 1 | . 1 . Fabricators . | . . . Repair Stations 1 | . 1 . Recycling Units . | . . . Scanalyzers . | . . . Garrison Access . | . . . Total Hacks 5 | . 5 . Successful 3 | . 3 . Failed 2 | . 2 . Catastrophic . | . . . Database Lockouts . | . . . Manual . | . . . Terminals 2 | . 2 . Fabricators . | . . . Repair Stations 3 | . 3 . Recycling Units . | . . . Scanalyzers . | . . . Garrison Access . | . . . Terminal Hacks 1 | . 1 . Prototype ID Bank 1 | . 1 . Fabricator Hacks . | . . . Repair Station Hacks 2 | . 2 . Scan Component 1 | . 1 . Refit 1 | . 1 . Recycling Unit Hacks . | . . . Scanalyzer . | . . . Garrison Access Hacks . | . . . Unauthorized Hacks . | . . . Terminals . | . . . Fabricators . | . . . Repair Stations . | . . . Recycling Units . | . . . Scanalyzers . | . . . Garrison Access . | . . . Data Cores Recovered . | . . . Used . | . . . Hacking Detections 2 | . 2 . Full Trace Events 1 | . 1 . Feedback Events . | . . . Feedback Blocked . | . . . Robot Schematics Acquired . | . . . Robots Built . | . . . Authchips . | . . . Time . | . . . Total Robot Build Rating . | . . . Part Schematics Acquired . | . . . Parts Built . | . . . Authchips . | . . . Time . | . . . Total Part Build Rating . | . . . Parts Repaired . | . . . Time . | . . . Parts Recycled . | . . . Recycled Matter . | . . . Retrieved Matter . | . . . Retrieved Components . | . . . Parts Scanalyzed . | . . . Part Schematics Acquired . | . . . Parts Damaged . | . . . Bothacking | -11 -10 -10 ------------ Run | Yrd Mat Min Used RIF Installer . | . . . Robots Hacked . | . . . Non-combat . | . . . Combat . | . . . Robot Hacks Applied . | . . . Relay Couplers Released . | . . . Fabnet Peak Effective % . | . . . Robots Rewired . | . . . Allies Hacked . | . . . Hacks Repelled . | . . . Allies | -11 -10 -10 -------- Run | Yrd Mat Min Total Allies 2 | . . 2 Largest Group 1 | . . 1 Highest-Rated Group 31 | . . 31 Highest-Rated Ally 31 | . . 31 Total Orders . | . . . Ally Attacks 9 | . . 9 Total Damage 82 | . . 82 Kills 1 | . . 1 Allies Corrupted . | . . . Allies Melted . | . . . Intel | -11 -10 -10 ------- Run | Yrd Mat Min Robot Analysis Total . | . . . Derelict Logs Recovered . | . . . Drone Launches . | . . . Drone Recoveries . | . . . Exploration | -11 -10 -10 ------------- Run | Yrd Mat Min Turns Passed 995 | 117 531 347 Spaces Moved 543 | 74 279 190 Core 29 | 18 . 11 Treads 514 | 56 279 179 Legs . | . . . Wheels . | . . . Hover . | . . . Flight . | . . . Fastest Speed 50 | 50 160 50 Average Speed 154 | 133 160 153 Slowest Speed 160 | 160 160 160 Overloaded Moves . | . . . Propulsion Burnouts . | . . . Robots Hopped . | . . . Cave-ins Triggered . | . . . Exploration Rate (%) 28 | 4 48 32 Regions Visited 2 Branch Regions 1 Pre-discovered Areas . | . . . Known Exits Taken . | . . . Unknown Exits Taken 2 | 1 1 . Scrap Searched 1 | . . 1 Spaces Dug . | . . . Terrain Destroyed 18 | . . 18 Melee . | . . . Projectile . | . . . AOE 18 | . . 18 Terrain Rammed . | . . . Walls Destroyed . | . . . Machines Disabled . | . . . Actions | -11 -10 -10 --------- Run | Yrd Mat Min Total 630 | 89 321 220 Wait . | . . . Move 541 | 73 278 190 Hop . | . . . Pick Up 16 | 7 8 1 Fast Attach . | . . . Attach 10 | 5 4 1 Detach . | . . . Swap 4 | . . 4 Drop 6 | . 2 4 Fire 53 | 4 29 20 Melee . | . . . Ram . | . . . Kick . | . . . Crush . | . . . Escape Stasis . | . . . Rewire . | . . . Trap . | . . . Miscellaneous . | . . . Route ------- -11/Scrapyard -10/Materials -10/Mines History --------- Turn | Location | Event 4 | -11/Scrapyard | Discovered new exit (range 16) 118 | -11/Scrapyard | Entered Materials 309 | -10/Materials | Build established: Mutant 512 | -10/Materials | Discovered new exit (range 6) 649 | -10/Materials | Entered Mines 932 | -10/Mines | Assembled infested the area 951 | -10/Mines | Core integrity fell below 50% 988 | -10/Mines | Core integrity fell below 20% 996 | -10/Mines | Destroyed by as-91402 with Assembled Rifle Last Messages --------------- K-01 Serf destroyed. as-46403 destroyed. Switching to secondary target: as-67870. Plasma Injector explodes. as-26349 destroyed. as-83174 destroyed. as-95122 destroyed. Destroyed Asb. Hover Unit. as-87179 destroyed. as-67870 destroyed. Acquired 5 matter. Beamcaster destroyed. Lgt. Treads destroyed. System corrupted by crushing effect (+1). Imp. Heat Sink destroyed. Knocked back. Acquired 11 matter. Lgt. Angular Momentum Engine destroyed. Lgt. Assault Rifle destroyed. Map ----- +----------------------------------------------------+ | ??## ### #?## #???????# #???????????????????????? | | ???#????# #??# #???????# #???????????????????????? | | ????????# #??# ######### ###############?###?????? | | ######### #??# #?# ?????? | | #??################ ######## #?# #?????? | | ###########??????????????####$#?????## ### #?????? | | ###?????????????????????## # ####### ## ###???? | | #?????????????????????# % %##??? | | #?????????????????????# % =![#### | | " #?????????????????????# ########## %/ # | | " #?????????????????????## ###?????## ## | | " #??????????????????????## ##?????####### | | #???????????????????????## #???????????### | | #????????????????????????## #??????????????# | | #????????????????????????## #???????????????## | | #????????????????????##### ##???????????????? | | #????????????????????# ##??????????????? | | ###????????????????????## #??????????????? | | ????????????????????????## #??????????????? | | ?????????????# ?????????## ## ##??????????????? | | ?????????????# ##### ######???????????????? | | ????????????#% #????????????????????? | | ???????????# #####a########?????????????? | | ?????????? #???????####% #???????????? | | ?????????????????????###;#; ########?????????????? | | ?????????????????????#; @aa #???????????????????? | | ?????????????????????#; a %a ##??????????????????? | | ?????????????????????#; a% ;#??????????????????? | | ?????????????????????#; % %;#??????????????????? | | ?????????????????????#; ##??????????????????? | | ?????????????????????#; ;#??????????????????? | | ?????????????????????#;;;;;;;##??????????????????? | | ?????????????????????#########???????????????????? | | ?????????????????????????????????????????????????? | | ?????????????????????????????????????????????????? | | ?????????????????????????????????????????????????? | | ?????????????????????????????????????????????????? | | ?????????????????????????????????????????????????? | | ?????????????????????????????????????????????????? | | ?????????????????????????????????????????????????? | | ?????????????????????????????????????????????????? | | ?????????????????????????????????????????????????? | | ?????????????????????????????????????????????????? | | ?????????????????????????????????????????????????? | | ?????????????????????????????????????????????????? | | ?????????????????????????????????????????????????? | | ?????????????????????????????????????????????????? | | ?????????????????????????????????????????????????? | | | | | +----------------------------------------------------+ Best States ------------- Heat Dissipation 39 Energy Generation 18 Energy Capacity 250 Matter Stores 400 Matter Capacity 400 Sight Range 16 Terrain Scan Density 10 Armor Coverage 150 Propulsion Shielding 33 Evasion (%) 50 Recoil Reduction 2 Item Schematics ----------------- None Robot Schematics ------------------ None Fabricated ------------ Nothing Alien Tech Used ----------------- None Achievements -------------- None Challenges ------------ None Game ------ Seed WeightGatlingPenetrator Manual? 0 Play Time 00:11:58 Cumulative 0.8 hours Start 2024.03.31 @ 19:07:20 End 2024.03.31 @ 19:16:14 Sessions 1 Manual Loads 0 Difficulty Rogue Special Mode None Game No. 4 Rogue 4 Adventurer 0 Explorer 0 Win Type - Total 0 Types 0/0/0/0/0/0/0/0/0 Lore% 2 Gallery% 3 Achievement% 5 Wizard Run 0 Options --------- Layout 1 ASCII 0 Keyboard 0 Movement Mouse Keybinds 0 Fullscreen 1 Font 24/Smallcaps Map View 50x35 Zoom Use 0% Tactical HUD 0 Map Filters NONE Filters NONE Steam 1 RUN: 7ccec667-7d3c-487c-a4cf-4555e0929fe9